[Event "Reykjavik Open 2022"]
[Site "Reykjavik"]
[Date "2022.04.09"]
[Round "5.37"]
[White "Kolbus, Dietmar"]
[Black "Moerman, Thomas"]
[Result "1-0"]
[ECO "A14"]
[WhiteElo "2305"]
[BlackElo "2010"]
[Annotator "TA"]
[PlyCount "85"]
[EventDate "2022.04.06"]
[EventCountry "ISL"]
[SourceTitle "playchess.com"]
[Source "ChessBase"]
[SourceQuality "1"]
[TimeControl "40/5400+30:1800+30"]

{[%evp 14,85,8,20,51,0,34,36,18,25,39,40,56,48,38,53,45,52,48,39,53,52,52,49,62,55,62,64,72,58,107,39,88,88,87,84,84,76,95,87,88,86,86,89,102,102,94,99,99,91,91,84,84,85,148,128,164,163,165,147,175,161,175,211,527,518,511,504,614,559,632,498,1650,1535]} 1. c4 {[%emt 0:00:06]} Nf6 {[%emt 0:00:07]} 2. Nf3 {[%emt 0:02:07]} e6 {[%emt 0:00:10]} 3. g3 {[%emt 0:03:40]} d5 {[%emt 0:00:23]} 4. Bg2 {[%emt 0:00:35]} Be7 {[%emt 0:00:15]} 5. O-O {[%emt 0:00:31]} O-O {[%emt 0:00:04]} 6. b3 {[%emt 0:02:26]} c5 {[%emt 0:03:06]} 7. cxd5 $1 {[%emt 0:01:11][%mdl 4] is currently scoring better than 7.Bb2.} Nxd5 {[%emt 0:01:55]} 8. Bb2 {[%emt 0:00:08]} Bf6 {[%emt 0:02:08] A14: English Opening: 1...e6 with b3 by White.} 9. Qc1 {[%emt 0:00:12] [#]} ({White should try} 9. d4 $14) 9... Qe7 $146 {[%emt 0:02:29]} ({Predecessor:} 9... Nc6 10. Nc3 Nxc3 11. Bxc3 Nd4 12. Re1 Rb8 13. Nxd4 Bxd4 14. Qa3 a6 15. Bxd4 cxd4 16. Rac1 b6 17. Rc6 Bb7 18. Rd6 Qe7 19. Qb4 Bxg2 20. Kxg2 e5 21. Rc1 a5 22. Qa3 Rbc8 23. Rc4 b5 24. Rxc8 Rxc8 25. Rc6 Qb7 {0-1 (25) Skembris,S (2393)-Mastrovasilis,A (2497) Rio Achaea 2018}) 10. Nc3 {[%emt 0:00:23]} Nxc3 {[%emt 0:06:15] White is slightly better.} 11. Bxc3 {[%emt 0:00:11]} Bxc3 {[%emt 0:00:53]} 12. Qxc3 {[%emt 0:00:24]} Nc6 {[%emt 0:05:33]} 13. Rac1 {[%emt 0:08:13][%cal Ba1c1,Bc1c4,Bc4c5][%mdl 32]} b6 $1 {[%emt 0:03:43]} 14. d4 {[%emt 0:15:00]} Nb4 {[%emt 0:07:58]} 15. Qb2 {[%emt 0:01:38]} ({But not} 15. dxc5 Nxa2 16. Qb2 Nxc1 $17) 15... cxd4 {[%emt 0:05:41]} 16. Nxd4 {[%emt 0:02:05]} Bb7 {[%emt 0:02:54]} 17. Bxb7 {[%emt 0:01:09]} Qxb7 {[%emt 0:00:21]} 18. Rc4 {[%emt 0:00:15]} Nd5 {[%emt 0:07:09]} 19. Rfc1 {[%emt 0:00:55]} Rac8 {[%emt 0:20:06]} 20. Nc6 {[%emt 0:03:55] [#] aiming for e4.} b5 {[%emt 0:04:49]} 21. Rc5 {[%emt 0:14:46] &Bianco is more active.} ({Don't blunder} 21. Rg4 $2 f5 22. Rg5 g6 $19) 21... b4 {[%emt 0:03:59]} (21... Rce8 $14) 22. a3 {[%emt 0:01:34]} (22. R1c4 $16) 22... Nc3 {[%emt 0:04:29] [#]} (22... bxa3 $14 {is more appropriate.} 23. Qxa3 Ra8) 23. axb4 $1 $16 {[%emt 0:00:35]} Rxc6 {[%emt 0:00:28]} 24. Rxc6 {[%emt 0:03:31]} ({Don't take} 24. R1xc3 Rd6 25. Qc2 Qxb4 $11) (24. Qxc3 {looks sharper.} Rd6 25. Rc8 Rd1+ 26. Rxd1 Rxc8 27. Rd4) 24... Qxc6 {[%emt 0:00:21]} 25. Qxc3 {[%emt 0:00:07][%mdl 4096] Endgame KQR-KQR} Qb7 {[%emt 0:02:19]} 26. Qc5 {[%emt 0:00:25]} h6 {[%emt 0:01:37]} 27. f3 {[%emt 0:02:55]} Rb8 {[%emt 0:01:31]} 28. Rc4 {[%emt 0:00:57]} Qa6 {[%emt 0:03:21]} 29. Qc7 {[%emt 0:07:24]} Rb7 {[%emt 0:02:37]} 30. Qd8+ {[%emt 0:10:21]} Kh7 {[%emt 0:00:07]} 31. Qd3+ {[%emt 0:00:35]} g6 {[%emt 0:01:03]} 32. Qd4 {[%emt 0:01:09] Hoping for Rc8.} Qb6 {[%emt 0:06:49]} 33. Qxb6 {[%emt 0:00:56]} axb6 {[%emt 0:00:26] KR-KR} ({Black should play} 33... Rxb6 34. Kf2 Ra6) 34. b5 {[%emt 0:00:11]} Kg7 {[%emt 0:00:11]} 35. Kf2 {[%emt 0:00:33]} Kf6 {[%emt 0:00:06]} 36. Ke3 {[%emt 0:00:13]} Ke5 {[%emt 0:00:08]} 37. Rc6 {[%emt 0:00:33]} Kd5 {[%emt 0:01:20]} 38. f4 {[%emt 0:01:52]} Ra7 $2 {[%emt 0:01:09]} (38... g5 39. Kd3 f5) 39. Kd3 $18 {[%emt 0:00:11][%csl Gd3][%cal Re2e4] White is clearly winning.} f5 {[%emt 0:00:47] Inhibits e4+.} 40. Rxb6 {[%emt 0:00:00]} Ra3 {[%emt 0:00:00]} 41. Kc3 {[%emt 0:10:21] Black must now prevent Ra6.} Ra2 {[%emt 0:02:36]} 42. Rc6 {[%emt 0:04:23]} Rxe2 {[%emt 0:02:38]} (42... Ra8 $142 43. Kb4 Rb8) 43. Rc8 {[%emt 0:00:10] Weighted Error Value: White=0.06 (flawless) /Black=0.31} 1-0

[Event "Reykjavik Open 2022"]
[Site "Reykjavik"]
[Date "2022.04.09"]
[Round "5.38"]
[White "Burlacu, Bogdan"]
[Black "Balzer, Lars"]
[Result "1-0"]
[ECO "B15"]
[WhiteElo "2294"]
[BlackElo "2018"]
[Annotator "NA RC"]
[PlyCount "69"]
[EventDate "2022.04.06"]
[EventCountry "ISL"]
[SourceTitle "playchess.com"]
[Source "ChessBase"]
[SourceQuality "1"]
[TimeControl "40/5400+30:1800+30"]

1. e4 {[%emt 0:00:03]} g6 {[%emt 0:00:14]} 2. d4 {[%emt 0:00:25]} c6 {[%emt 0:00:06]} 3. Nc3 {[%emt 0:00:35]} d5 {[%emt 0:00:08]} 4. h3 {[%emt 0:00:28]} Bg7 {[%emt 0:00:56]} 5. Nf3 {[%emt 0:00:28]} dxe4 {[%emt 0:00:55]} 6. Nxe4 {[%emt 0:00:07]} Nf6 {[%emt 0:00:15]} 7. Nxf6+ {[%emt 0:00:48]} exf6 {[%emt 0:00:00]} 8. Bc4 {[%emt 0:00:42]} O-O {[%emt 0:00:04]} 9. O-O {[%emt 0:00:42]} a5 {[%emt 0:00:33]} 10. a4 {[%emt 0:02:08]} Na6 {[%emt 0:00:42]} 11. Bf4 {[%emt 0:11:02]} Nc7 {[%emt 0:00:40]} 12. Bb3 {[%emt 0:04:01]} Nd5 {[%emt 0:03:24]} 13. Bd2 {[%emt 0:07:27]} Qc7 {[%emt 0:07:13]} 14. c4 {[%emt 0:06:31]} Nf4 {[%emt 0:03:11]} 15. Be3 {[%emt 0:02:58]} f5 {[%emt 0:06:31]} 16. d5 {[%emt 0:05:46]} Nh5 {[%emt 0:08:01]} 17. d6 {[%emt 0:08:19]} Qd8 {[%emt 0:00:46]} 18. c5 {[%emt 0:04:56]} Nf6 {[%emt 0:10:23]} 19. Bd4 {[%emt 0:11:28]} Ne4 {[%emt 0:06:37]} 20. Re1 {[%emt 0:08:16]} Re8 {[%emt 0:02:54]} 21. Bxg7 {[%emt 0:03:24]} Kxg7 {[%emt 0:00:12]} 22. Qd4+ {[%emt 0:00:01]} f6 {[%emt 0:04:26]} 23. Bc2 {[%emt 0:02:56]} Be6 {[%emt 0:03:51]} 24. Bxe4 {[%emt 0:00:37]} fxe4 {[%emt 0:00:09]} 25. Rxe4 {[%emt 0:00:01]} Bd5 {[%emt 0:01:17]} 26. Rxe8 {[%emt 0:00:13]} Qxe8 {[%emt 0:00:12]} 27. Re1 {[%emt 0:00:02]} Qf8 {[%emt 0:02:09]} 28. Re7+ {[%emt 0:00:31]} Kg8 {[%emt 0:00:22]} 29. Qh4 {[%emt 0:04:36]} h5 {[%emt 0:01:48]} 30. Qf4 {[%emt 0:04:28]} Rd8 {[%emt 0:07:50]} 31. Nh4 {[%emt 0:01:31]} g5 {[%emt 0:01:21]} 32. Qf5 {[%emt 0:00:25]} Bf7 {[%emt 0:00:26]} 33. Qxf6 {[%emt 0:00:17]} gxh4 {[%emt 0:01:42]} 34. Rxf7 {[%emt 0:00:06]} Qxf7 {[%emt 0:00:10]} 35. Qxd8+ {[%emt 0:00:09]} 1-0

[Event "Reykjavik Open 2022"]
[Site "Reykjavik"]
[Date "2022.04.09"]
[Round "5.39"]
[White "Filipovich, David"]
[Black "Mannion, Stephen R"]
[Result "1/2-1/2"]
[ECO "A11"]
[WhiteElo "1975"]
[BlackElo "2281"]
[Annotator "NA RC"]
[PlyCount "76"]
[EventDate "2022.04.06"]
[EventCountry "ISL"]
[SourceTitle "playchess.com"]
[Source "ChessBase"]
[SourceQuality "1"]
[TimeControl "40/5400+30:1800+30"]

1. Nf3 {[%emt 0:00:09]} d5 {[%emt 0:00:08]} 2. g3 {[%emt 0:00:28]} Bg4 {[%emt 0:00:10]} 3. Bg2 {[%emt 0:00:36]} Nd7 {[%emt 0:00:06]} 4. c4 {[%emt 0:04:48]} e6 {[%emt 0:00:22]} 5. cxd5 {[%emt 0:03:24]} exd5 {[%emt 0:00:06]} 6. Nc3 {[%emt 0:03:44]} c6 {[%emt 0:02:08]} 7. d3 {[%emt 0:01:31]} Ngf6 {[%emt 0:00:33]} 8. O-O {[%emt 0:00:10]} Bc5 {[%emt 0:00:29]} 9. h3 {[%emt 0:13:06]} Bxf3 {[%emt 0:00:13]} 10. Bxf3 {[%emt 0:00:40]} O-O {[%emt 0:00:16]} 11. e4 {[%emt 0:03:17]} dxe4 {[%emt 0:00:23]} 12. dxe4 {[%emt 0:00:27]} Ne5 {[%emt 0:06:53]} 13. Be2 {[%emt 0:02:00]} Qe7 {[%emt 0:35:48]} 14. Qc2 {[%emt 0:07:10]} Rfe8 {[%emt 0:02:19]} 15. Kg2 {[%emt 0:09:39]} Ned7 {[%emt 0:02:39]} 16. Bg5 {[%emt 0:00:17]} h6 {[%emt 0:01:18]} 17. Bxf6 {[%emt 0:00:06]} Nxf6 {[%emt 0:00:36]} 18. Bd3 {[%emt 0:02:38]} Bd4 {[%emt 0:11:17]} 19. Rae1 {[%emt 0:04:31]} Qc5 {[%emt 0:01:27]} 20. f4 {[%emt 0:03:47]} Rad8 {[%emt 0:07:23]} 21. Rd1 {[%emt 0:15:58]} a5 {[%emt 0:06:52]} 22. Rfe1 {[%emt 0:00:52]} Kf8 {[%emt 0:00:52]} 23. Kh2 {[%emt 0:05:11]} h5 {[%emt 0:04:52]} 24. e5 {[%emt 0:01:21]} Nd5 {[%emt 0:00:37]} 25. Nxd5 {[%emt 0:00:50]} Qxc2+ {[%emt 0:00:33]} 26. Bxc2 {[%emt 0:00:08]} Rxd5 {[%emt 0:00:06]} 27. Be4 {[%emt 0:05:21]} Rdd8 {[%emt 0:00:09]} 28. Re2 {[%emt 0:02:49]} Re7 {[%emt 0:05:03]} 29. Red2 {[%emt 0:01:15]} c5 {[%emt 0:00:02]} 30. Bf3 {[%emt 0:01:03]} g6 {[%emt 0:00:40]} 31. h4 {[%emt 0:00:37]} Kg7 {[%emt 0:02:33]} 32. Kg2 {[%emt 0:00:49]} f6 {[%emt 0:00:40]} 33. exf6+ {[%emt 0:01:24]} Kxf6 {[%emt 0:00:02]} 34. Re2 {[%emt 0:04:00]} Rxe2+ {[%emt 0:01:23]} 35. Bxe2 {[%emt 0:00:04]} Re8 {[%emt 0:00:06]} 36. Rd2 {[%emt 0:01:07]} Re3 {[%emt 0:00:27]} 37. Bf3 {[%emt 0:00:57]} Re1 {[%emt 0:00:27]} 38. Bxb7 {[%emt 0:00:40]} Rb1 {[%emt 0:01:58]} 1/2-1/2

[Event "Reykjavik Open 2022"]
[Site "Reykjavik"]
[Date "2022.04.09"]
[Round "5.40"]
[White "Valkama, Eero"]
[Black "Carlsson, Gustav"]
[Result "1-0"]
[ECO "C05"]
[WhiteElo "2244"]
[BlackElo "1996"]
[Annotator "TA"]
[PlyCount "109"]
[EventDate "2022.04.06"]
[EventCountry "ISL"]
[SourceTitle "playchess.com"]
[Source "ChessBase"]
[SourceQuality "1"]
[TimeControl "40/5400+30:1800+30"]

{[%evp 15,109,3,11,5,12,-8,0,-6,20,-12,0,0,9,11,27,-29,45,41,62,7,0,9,43,43,47,63,63,7,54,71,72,-84,64,30,50,19,27,8,204,205,194,135,127,115,124,-114,23,0,0,-60,-59,-111,-55,-67,-73,-182,-196,-192,-195,-208,-169,-116,-74,-96,246,251,248,237,213,207,713,710,769,443,401,383,1431,1413,1341,1204,1456,1472,1370,656,4137,4137,4137,4137,29989,29990,29990,29991,29991,29992,29993,29994]} 1. e4 {[%emt 0:00:03]} e6 {[%emt 0:00:06]} 2. d4 {[%emt 0:00:05]} d5 {[%emt 0:00:05]} 3. Nd2 {[%emt 0:00:06]} Nf6 {[%emt 0:00:15]} 4. e5 {[%emt 0:00:06]} Nfd7 {[%emt 0:00:04]} 5. f4 {[%emt 0:00:06]} c5 {[%emt 0:00:31]} 6. c3 {[%emt 0:00:09]} Nc6 {[%emt 0:00:06]} 7. Ndf3 {[%emt 0:00:06]} Qb6 {[%emt 0:01:05]} 8. a3 {[%emt 0:00:07]} a5 {[%emt 0:06:03]} 9. b3 {[%emt 0:00:44] C05: French Tarrasch: 3...Nf6 4 e5 Nfd7, 5 f4 and 5 Bd3 sidelines.} Be7 {[%emt 0:22:59]} 10. Ne2 {[%emt 0:06:33][%cal Of4f5]} Qc7 {[%emt 0:10:23] [#]} 11. Be3 $146 {[%emt 0:06:21] The position is equal.} ({Predecessor:} 11. Ng3 O-O 12. Bd3 b6 13. f5 cxd4 14. fxe6 fxe6 15. cxd4 Ncxe5 16. Bxh7+ Kxh7 17. dxe5 Nxe5 {1-0 (29) Mrvova,A-Muller,V Bratislava 1993}) 11... b6 {[%emt 0:06:38]} 12. g4 {[%emt 0:23:18]} h5 {[%emt 0:04:41]} 13. gxh5 {[%emt 0:01:09]} Rxh5 {[%emt 0:01:38]} 14. Ng3 {[%emt 0:01:31]} Rh8 {[%emt 0:00:26]} 15. Kf2 {[%emt 0:03:39]} (15. Bb5 $142) 15... a4 {[%emt 0:02:02]} (15... Bb7 $11) 16. b4 $14 {[%emt 0:01:18]} c4 {[%emt 0:04:58]} 17. f5 {[%emt 0:06:47]} (17. h4 $14) 17... Nf8 $1 $11 {[%emt 0:03:36]} 18. Qc2 {[%emt 0:05:03]} exf5 {[%emt 0:04:27]} (18... f6 $5 {[%cal Rf6e5]}) 19. Nxf5 {[%emt 0:01:24]} Ne6 {[%emt 0:00:07]} 20. h4 {[%emt 0:01:38]} g6 {[%emt 0:01:44]} 21. Ng3 {[%emt 0:00:26]} (21. Nh6 $14) 21... Ng7 {[%emt 0:01:12]} (21... Bd7 $11) 22. Bg2 $14 {[%emt 0:17:40]} Nf5 {[%emt 0:01:35]} 23. Qd1 $2 {[%emt 0:05:52]} (23. h5 $16 {hxg6 is the strong threat.} Nxg3 24. hxg6 Rxh1 25. Kxg3 Bh4+ 26. Nxh4 Rxa1 27. g7) 23... Nxg3 {[%emt 0:03:34]} (23... Nxe3 $17 24. Kxe3 Bg4) 24. Kxg3 {[%emt 0:00:04]} Bf5 {[%emt 0:01:47]} (24... Qd7 $2 25. Ng5 $18) 25. Bf4 {[%emt 0:05:29]} (25. Ng5 $5 {[%cal Rg2d5]} f6 26. Bxd5 $1 fxg5 27. hxg5 $16) 25... Qd7 {[%emt 0:00:58]} 26. Ng5 {[%emt 0:00:13]} Nd8 $2 {[%emt 0:03:15]} (26... Be6 $11 {and Black is okay.}) 27. Qf3 $18 {[%emt 0:00:38]} Be6 {[%emt 0:04:03]} 28. h5 {[%emt 0:01:45]} (28. Nxe6 $18 Nxe6 29. Qxd5) 28... gxh5 $16 {[%emt 0:01:16]} 29. Rxh5 {[%emt 0:00:02]} Rg8 {[%emt 0:00:14]} 30. Qe3 $2 {[%emt 0:02:55]} (30. Kf2 $16) 30... Nc6 {[%emt 0:01:43]} (30... Bg4 $17 31. Rh4 Bf5) 31. Kf2 {[%emt 0:01:10]} (31. Kh2 $5 {[%cal Rg5e6]}) 31... O-O-O {[%emt 0:01:10]} 32. Nh7 {[%emt 0:01:14] Active counter play!} (32. Rg1 $11) 32... Rg6 {[%emt 0:01:22]} 33. Bf3 {[%emt 0:02:17]} ({White should try} 33. Rg1 $15) 33... Rdg8 {[%emt 0:00:56]} (33... Bg4 $17 34. Rah1 Bxf3 35. Qxf3 Rdg8) 34. Rah1 $15 {[%emt 0:00:34][%cal Oh7f6]} Bg4 {[%emt 0:01:26]} 35. Bxg4 {[%emt 0:05:00]} (35. Rh6 $17) 35... Qxg4 $19 {[%emt 0:00:49]} 36. Qh3 {[%emt 0:00:05] [#]} Qxh3 {[%emt 0:00:45]} 37. R5xh3 {[%emt 0:00:48]} Rg2+ {[%emt 0:00:40]} 38. Kf3 {[%emt 0:00:09]} Ra2 {[%emt 0:00:51]} 39. Rh6 {[%emt 0:00:46] [#]} Rg6 {[%emt 0:03:47][%mdl 8192]} (39... Kb7 $1 $17 {keeps the pressure on.} 40. b5 Nd8) 40. Rxg6 $18 {[%emt 0:00:00]} fxg6 {[%emt 0:00:00]} 41. Nf6 {[%emt 0:04:53]} Rxa3 {[%emt 0:04:59]} 42. Nxd5 {[%emt 0:00:21]} Bxb4 $2 {[%emt 0:02:18]} (42... Bd8 43. Ke4 g5) 43. Ke4 {[%emt 0:08:52]} Bxc3 {[%emt 0:12:00]} 44. Nxb6+ {[%emt 0:01:24]} Kb7 {[%emt 0:00:33]} 45. Nxc4 {[%emt 0:00:07]} Ra1 $2 {[%emt 0:08:47]} (45... Rb3 46. d5 Rb4) 46. Rxa1 {[%emt 0:03:26]} Bxa1 {[%emt 0:00:05][%mdl 4096] Endgame KBN-KBN} 47. d5 {[%emt 0:00:04][%cal Bd4d5,Bd5d6][%mdl 32]} Ne7 {[%emt 0:01:23]} 48. d6 {[%emt 0:02:18]} Nc6 {[%emt 0:02:13]} 49. d7 {[%emt 0:05:17][%cal Oc4a5] Threatening mate with Na5+!} Nd8 {[%emt 0:03:49]} 50. Kd5 {[%emt 0:01:47] White threatens Bg5 and mate.} Bc3 {[%emt 0:01:39]} 51. Bg5 {[%emt 0:02:43]} Kc7 {[%emt 0:00:05]} 52. e6 {[%emt 0:00:09] White mates.} Bb4 {[%emt 0:00:15]} 53. Bxd8+ {[%emt 0:05:01]} ({And not} 53. e7 Bxe7 54. Bxe7 Kxd7 $11) 53... Kxd8 {[%emt 0:00:04]} 54. Ne5 {[%emt 0:00:07]} Kc7 {[%emt 0:01:17]} 55. Nc6 {[%emt 0:00:06] What a bad dream for Black.  Weighted Error Value: White=0.38/Black=0.67} 1-0

[Event "Reykjavik Open 2022"]
[Site "Reykjavik"]
[Date "2022.04.09"]
[Round "5.41"]
[White "Mahitosh Dey"]
[Black "Tirziman, Rudolf"]
[Result "1-0"]
[ECO "A47"]
[WhiteElo "2176"]
[BlackElo "1963"]
[Annotator "NA RC"]
[PlyCount "59"]
[EventDate "2022.04.06"]
[EventCountry "ISL"]
[SourceTitle "playchess.com"]
[Source "ChessBase"]
[SourceQuality "1"]
[TimeControl "40/5400+30:1800+30"]

1. d4 {[%emt 0:05:12]} Nf6 {[%emt 0:10:13]} 2. Nf3 {[%emt 0:00:05]} e6 {[%emt 0:00:19]} 3. Bf4 {[%emt 0:00:06]} b6 {[%emt 0:00:37]} 4. e3 {[%emt 0:00:08]} Bb7 {[%emt 0:00:20]} 5. Bd3 {[%emt 0:00:24]} Nh5 {[%emt 0:03:35]} 6. Bg5 {[%emt 0:00:14]} Be7 {[%emt 0:00:55]} 7. Bxe7 {[%emt 0:00:06]} Qxe7 {[%emt 0:00:07]} 8. Nbd2 {[%emt 0:02:01]} f5 {[%emt 0:03:34]} 9. c3 {[%emt 0:01:58]} O-O {[%emt 0:03:38]} 10. h3 {[%emt 0:00:05]} Nf6 {[%emt 0:01:55]} 11. g4 {[%emt 0:01:09]} Ne4 {[%emt 0:03:51]} 12. Rg1 {[%emt 0:00:07]} Nxd2 {[%emt 0:07:33]} 13. Nxd2 {[%emt 0:00:05]} Qh4 {[%emt 0:00:15]} 14. Qe2 {[%emt 0:03:07]} fxg4 {[%emt 0:28:05]} 15. hxg4 {[%emt 0:00:53]} Qh2 {[%emt 0:04:02]} 16. Rg3 {[%emt 0:00:08]} Nc6 {[%emt 0:00:48]} 17. Nf1 {[%emt 0:03:34]} Qh4 {[%emt 0:03:26]} 18. O-O-O {[%emt 0:00:09]} Ne7 {[%emt 0:01:16]} 19. Nd2 {[%emt 0:05:09]} a5 {[%emt 0:02:15]} 20. Be4 {[%emt 0:02:02]} Bxe4 {[%emt 0:01:22]} 21. Nxe4 {[%emt 0:00:04]} a4 {[%emt 0:01:37]} 22. a3 {[%emt 0:00:37]} Rf7 {[%emt 0:04:43]} 23. Rdg1 {[%emt 0:00:11]} Nd5 {[%emt 0:14:08]} 24. f4 {[%emt 0:00:16]} h6 {[%emt 0:01:46]} 25. g5 {[%emt 0:00:24]} h5 {[%emt 0:00:46]} 26. g6 {[%emt 0:00:43]} Rff8 {[%emt 0:00:37]} 27. Ng5 {[%emt 0:00:06]} Rf5 {[%emt 0:01:04]} 28. Kb1 {[%emt 0:00:21]} Raf8 {[%emt 0:00:33]} 29. Qg2 {[%emt 0:00:34]} Rxg5 {[%emt 0:00:59]} 30. fxg5 {[%emt 0:00:24]} 1-0

[Event "Reykjavik Open 2022"]
[Site "Reykjavik"]
[Date "2022.04.09"]
[Round "5.42"]
[White "Bartelt, Max Peter"]
[Black "Povah, Nigel E"]
[Result "1/2-1/2"]
[ECO "D01"]
[WhiteElo "1923"]
[BlackElo "2245"]
[Annotator "TA"]
[PlyCount "117"]
[EventDate "2022.04.06"]
[EventCountry "ISL"]
[SourceTitle "playchess.com"]
[Source "ChessBase"]
[SourceQuality "1"]
[TimeControl "40/5400+30:1800+30"]

{[%evp 9,117,-5,0,0,0,0,0,-17,0,0,0,-1,-13,-18,0,0,0,-41,70,-18,-18,-21,10,0,0,0,0,0,0,0,0,-11,-10,-151,-170,-139,-10,-33,-7,-32,-22,-17,0,0,0,0,6,11,27,-10,-17,-17,-17,-98,-96,-90,-9,-125,-129,-148,-140,-166,-129,-301,-300,-276,-208,-532,-546,-480,-112,-122,-117,-172,-122,-702,-702,-695,-688,-653,-645,-744,-735,-677,-641,-837,-782,-5285,-2923,-1606,-1559,-6029,-570,-535,0,-456,-460,-3640,-2337,-963,0,0,0,0,0,0,0,0,0,0]} 1. d4 {[%emt 0:00:03]} Nf6 {[%emt 0:00:09]} 2. Bg5 {[%emt 0:00:04]} d5 {[%emt 0:02:10]} 3. Bxf6 {[%emt 0:00:06]} gxf6 {[%emt 0:00:14]} 4. e3 {[%emt 0:00:08]} c5 {[%emt 0:04:32]} 5. Nc3 {[%emt 0:03:16]} e6 {[%emt 0:07:12]} 6. Qh5 {[%emt 0:05:38] D01: Veresov Opening.} cxd4 {[%emt 0:08:51]} 7. exd4 {[%emt 0:00:10]} Nc6 {[%emt 0:04:32]} 8. O-O-O {[%emt 0:01:48]} Bb4 {[%emt 0:01:47]} 9. Nge2 {[%emt 0:02:52]} Bd7 {[%emt 0:07:38]} 10. f4 {[%emt 0:01:38][%cal Of4f5]} f5 {[%emt 0:11:46]} 11. g4 {[%emt 0:00:12]} fxg4 {[%emt 0:01:49]} 12. f5 {[%emt 0:00:32]} Rg8 {[%emt 0:11:53] And now ...Qg5+ would win.} 13. h4 {[%emt 0:09:03] [#] Against Qg5+} gxh3 $146 {[%emt 0:08:24]} (13... exf5 14. Qxh7 Rf8 15. Re1 $11) ({Black should play} 13... Qa5 $1 $15) ({Predecessor:} 13... Qa5 14. Qxh7 O-O-O 15. h5 Rh8 16. Qg7 Rdg8 17. Qf6 Be7 18. Qxf7 Bg5+ 19. Kb1 Nd8 {0-1 (19) Meszaros,G (2425)-Neuman,P (2476) Slovakia 2011}) 14. Qxh7 {[%emt 0:02:06]} (14. fxe6 $14 Bxe6 15. Bxh3 Qg5+ 16. Qxg5 Rxg5 17. Bxe6 fxe6 18. Nf4 Bxc3 19. bxc3 (19. Nxe6 Bxd4 20. Nxd4 Nxd4 $11)) 14... Qg5+ $11 {[%emt 0:04:47]} 15. Kb1 {[%emt 0:00:30]} Qg7 {[%emt 0:01:29]} (15... exf5 $2 16. Rg1 (16. Nxd5 O-O-O $16) 16... Qxg1 17. Nxg1 Rxg1 18. Qh8+ (18. Nxd5 O-O-O $18) 18... Bf8 19. Nb5 (19. Bxh3 Rxd1+ 20. Nxd1 Be6 $18) (19. Nxd5 O-O-O $18) 19... Rxf1 20. Rxf1 $18) (15... O-O-O $5 {[%cal Rg8h8]}) 16. Qh4 {[%emt 0:09:31]} Qg5 {[%emt 0:01:38]} (16... exf5 $2 17. Nxd5 Be7 18. Qxh3 $18) 17. Qf2 {[%emt 0:01:40]} O-O-O {[%emt 0:00:39]} (17... exf5 $2 18. Rg1 Qxg1 19. Nxg1 $18) 18. Bxh3 {[%emt 0:00:40]} Bd6 {[%emt 0:02:30]} 19. Nb5 {[%emt 0:03:09]} Bb8 {[%emt 0:00:11]} 20. c4 {[%emt 0:00:41]} dxc4 {[%emt 0:01:47]} 21. d5 {[%emt 0:00:58]} (21. Nec3 $11 {remains equal.}) 21... exd5 $17 {[%emt 0:01:37]} 22. Rxd5 {[%emt 0:00:19]} Qf6 {[%emt 0:03:11]} (22... Rh8 $17 23. Nec3 Qf4 24. Qxf4 Bxf4) 23. Nec3 $1 $11 {[%emt 0:06:21] Strongly threatening Ne4.} Rge8 {[%emt 0:03:05] Against Ne4} 24. Rhd1 {[%emt 0:02:08]} Re5 {[%emt 0:01:10]} (24... Qh6 $5 {[%cal Rh6h3]} 25. Qf1 Re3 $15) 25. Ka1 {[%emt 0:08:07] Threatens to win with Nd6+.} Rxd5 {[%emt 0:00:50]} 26. Nxd5 {[%emt 0:01:23]} Qe5 {[%emt 0:01:05]} (26... Be6 $2 {[#]} 27. fxe6 $1 {[%mdl 512]} Be5 28. Nd6+ $1 {[%mdl 512]} (28. Nxf6 $2 Rxd1#) 28... Rxd6 29. exf7+ (29. Nxf6 $2 Rxd1#) 29... Kb8 30. Qxf6 (30. Nxf6 $2 Rxd1#) 30... Bxf6 31. f8=Q+ $18) 27. Qc5 {[%emt 0:01:26]} c3 {[%emt 0:01:33]} 28. bxc3 {[%emt 0:09:15]} ({But not} 28. Nbxc3 Bd6 29. Qxd6 Qxd6 $15) 28... f6 $1 {[%emt 0:00:16]} 29. Nd4 {[%emt 0:01:58]} Bd6 {[%emt 0:02:50]} 30. Qc4 {[%emt 0:02:42]} Kb8 {[%emt 0:00:51]} 31. Bg2 {[%emt 0:10:25]} (31. Nf3 $11 Qg3 32. Nxf6) 31... Nxd4 $17 {[%emt 0:01:06]} 32. cxd4 {[%emt 0:00:23]} Qg3 {[%emt 0:01:37]} ({Better is} 32... Qxf5 $17 {...Qg5 is the strong threat.} 33. Rb1 Bc8) 33. Bh1 {[%emt 0:01:37]} (33. Be4 $1 $11) 33... Bxf5 {[%emt 0:00:50]} 34. Qb5 {[%emt 0:02:09] Against Re8} Bd7 {[%emt 0:01:37]} 35. Qb2 {[%emt 0:02:58][%cal Od5c7]} Ba3 {[%emt 0:00:33]} 36. Qb1 {[%emt 0:05:31]} (36. Qb3 $17 Qxb3 37. axb3) 36... Bc6 $19 {[%emt 0:00:11] This bishop pair is nice.} 37. Rd3 {[%emt 0:00:05]} Qd6 {[%emt 0:00:09]} 38. Ne3 $2 {[%emt 0:02:14]} (38. Qb3) 38... Bxh1 {[%emt 0:00:50]} 39. Qxh1 {[%emt 0:00:40]} Qa6 {[%emt 0:00:41] Prevents Nc4.} (39... Rc8 $19 40. Kb1 Qa6) 40. Rc3 $17 {[%emt 0:00:00]} Bd6 {[%emt 0:00:00]} 41. Nf5 {[%emt 0:09:03]} (41. Qf3 $17) 41... Bb4 $40 {[%emt 0:06:34][%mdl 128] Black has strong attack.} (41... Bc7 $19 42. Qf3 Qa5) 42. Rc2 $2 {[%emt 0:04:51][%mdl 8192]} (42. Qh2+ $17 Ka8 43. Rc1) 42... Qd3 $1 $19 {[%emt 0:02:36][%csl LRc2,LRf5]} 43. Qh2+ {[%emt 0:00:34]} Ka8 {[%emt 0:00:16]} 44. Qc7 {[%emt 0:00:39][%cal Rc7d8]} Rb8 {[%emt 0:00:07] Hoping for ...Ba3.} 45. a3 {[%emt 0:07:16]} Qxa3+ {[%emt 0:04:08]} ({And not} 45... Qxf5 46. axb4 Qg4 47. Qc5 $17) 46. Kb1 {[%emt 0:00:06]} Qb3+ {[%emt 0:00:38]} 47. Ka1 {[%emt 0:01:22]} Qd3 {[%emt 0:02:28]} 48. Rc4 {[%emt 0:02:34]} Ba5 {[%emt 0:07:23]} 49. Qc5 {[%emt 0:04:32]} Bb6 {[%emt 0:00:18]} 50. Qd5 {[%emt 0:00:17]} Re8 {[%emt 0:05:18]} (50... Rh8 $142 51. Rc1 a6) 51. Qe6 {[%emt 0:01:32]} Rb8 {[%emt 0:00:35]} (51... Rxe6 $2 52. Rc8#) (51... Qa3+ $19 52. Kb1 Qb3+ 53. Kc1 Qa3+ 54. Kb1 Qb3+ 55. Ka1 Rb8) 52. Kb2 $2 {[%emt 0:02:07][%mdl 8192] Active counter play!} (52. Qd5 $1 $11 {and White is okay.} Rh8 53. Rc1) 52... a6 {[%emt 0:00:40]} 53. Nd6 {[%emt 0:03:54]} (53. Rc3 $142 Qd2+ 54. Rc2 Qb4+ 55. Ka1) 53... Bxd4+ {[%emt 0:00:58]} 54. Kc1 {[%emt 0:00:07]} Rh8 $2 {[%emt 0:01:22]} (54... Bc3 $19 {( -> ...Qd2+)} 55. Ne4 Bd4) 55. Rc8+ $11 {[%emt 0:00:18] The position is equal.} Ka7 {[%emt 0:00:39]} 56. Rxh8 {[%emt 0:00:20] Intending Nc8+ and mate. Really sharp!} Be3+ {[%emt 0:00:54]} 57. Kb2 {[%emt 0:00:06]} Bd4+ {[%emt 0:00:07]} 58. Kc1 {[%emt 0:00:44] White wants to mate with Nc8+.} Be3+ {[%emt 0:01:02]} 59. Kb2 {[%emt 0:00:13] Weighted Error Value: White=0.81/Black=0.53} 1/2-1/2